fUSD/lending_fUSD_20260514
["ID","MTS","AMOUNT","RATE_DAILY","PERIOD"]
[422258447,1778772646000,-1565.602577,0.00027397,2]
[422258449,1778772646000,-321.442549,0.00027397,2]
[422258448,1778772646000,-321.442549,0.00027397,2]
[422258443,1778772646000,-920.886244,0.00027397,2]
[422258450,1778772646000,-321.442549,0.00027397,2]
[422258453,1778772646000,-5230.67,0.00027397,10]
[422258452,1778772646000,-2742.98,0.00027397,10]
[422258451,1778772646000,-321.442549,0.00027397,2]
[422258455,1778772646000,-842.19,0.000274,7]
[422258465,1778772646000,-308.0,0.000281,2]
[422258454,1778772646000,-1619.18,0.000274,7]
[422258457,1778772646000,-8508.0,0.000274,7]
[422258456,1778772646000,-2829.47,0.000274,14]
[422258458,1778772646000,-243.59855272,0.00027575,120]
[422258461,1778772646000,-2073.56,0.000278,2]
[422258462,1778772646000,-500.0,0.000278,7]
[422258463,1778772646000,-214.95940296,0.000278,7]
[422258460,1778772646000,-573.0,0.00027767,5]
[422258413,1778772646000,-7078.40236706,0.000273,2]
[422258464,1778772646000,-208.3309892,0.000278,7]
[422258466,1778772646000,-1000.0,0.000281,2]
[422258437,1778772646000,-413.199868,0.00027397,2]
[422258439,1778772646000,-413.199868,0.00027397,2]
[422258459,1778772646000,-150.0,0.0002761,2]
[422258434,1778772646000,-151.0,0.00027397,2]
[422258435,1778772646000,-151.0,0.00027397,2]
[422258411,1778772646000,-8508.0,0.000271,7]
[422258406,1778772646000,-1270.0,0.0002709,2]
[422258405,1778772646000,-214.95940296,0.00027,7]
[422258404,1778772646000,-208.3309892,0.00027,7]
[422258415,1778772646000,-1528.0,0.000273,2]
[422258414,1778772646000,-1210.47,0.000273,7]
[422258417,1778772646000,-1005.68469482,0.00027397,30]
[422258416,1778772646000,-1293.02198576,0.00027397,2]
[422258427,1778772646000,-300.0,0.00027397,2]
[422258418,1778772646000,-187.93632168,0.00027397,2]
[422258424,1778772646000,-1464.95,0.00027397,2]
[422258428,1778772646000,-1609.946875,0.00027397,2]
[422258407,1778772646000,-1223.0,0.0002709,2]
[422258432,1778772646000,-526.4,0.00027397,2]
[422258431,1778772646000,-1609.946875,0.00027397,2]
[422258433,1778772646000,-151.0,0.00027397,2]
[422258429,1778772646000,-1609.946875,0.00027397,2]
[422258441,1778772646000,-920.886244,0.00027397,2]
[422258423,1778772646000,-151.16892255,0.00027397,2]
[422258440,1778772646000,-920.886244,0.00027397,2]
[422258430,1778772646000,-1609.946875,0.00027397,2]
[422258421,1778772646000,-2000.0,0.00027397,7]
[422258420,1778772646000,-1500.0,0.00027397,2]
[422258419,1778772646000,-186.4,0.00027397,7]
[422258425,1778772646000,-1065.33,0.00027397,2]
[422258426,1778772646000,-1017.61,0.00027397,2]
[422258422,1778772646000,-1009.93,0.00027397,2]
[422258518,1778772647000,-150.0,0.00028494,2]
[422258520,1778772647000,-150.0,0.00028494,2]
[422258507,1778772647000,-2000.0,0.00028483,2]
[422258499,1778772647000,-2000.0,0.00028483,2]
[422258548,1778772647000,-1070.0,0.00028494,2]
[422258505,1778772647000,-2000.0,0.00028483,2]
[422258498,1778772647000,-2000.0,0.00028483,2]
[422258489,1778772647000,-500.0,0.00028342,2]
[422258496,1778772647000,-2000.0,0.00028483,2]
[422258511,1778772647000,-210.60844671,0.00028494,2]
[422258494,1778772647000,-2000.0,0.00028483,2]
[422258492,1778772647000,-418.0,0.00028342,2]
[422258513,1778772647000,-500.0,0.00028494,2]
[422258509,1778772647000,-156.58,0.00028493,2]
[422258524,1778772647000,-1070.0,0.00028494,2]
[422258514,1778772647000,-590.8172916,0.00028494,2]
[422258516,1778772647000,-150.0,0.00028494,2]
[422258526,1778772647000,-150.0,0.00028494,2]
[422258528,1778772647000,-1070.0,0.00028494,2]
[422258531,1778772647000,-200.0,0.00028494,2]
[422258541,1778772647000,-1070.0,0.00028494,2]
[422258546,1778772647000,-1070.0,0.00028494,2]
[422258544,1778772647000,-1070.0,0.00028494,2]
[422258533,1778772647000,-1070.0,0.00028494,2]
[422258497,1778772647000,-2000.0,0.00028483,2]
[422258522,1778772647000,-150.0,0.00028494,2]
[422258495,1778772647000,-2000.0,0.00028483,2]
[422258480,1778772647000,-2236.0,0.00028267,2]
[422258503,1778772647000,-2000.0,0.00028483,2]
[422258535,1778772647000,-1070.0,0.00028494,2]
[422258470,1778772647000,-2000.0,0.00028169,2]
[422258468,1778772647000,-200.0,0.000281,2]
[422258467,1778772647000,-314.0,0.000281,2]
[422258469,1778772647000,-2000.0,0.00028169,2]
[422258477,1778772647000,-2000.0,0.00028169,2]
[422258471,1778772647000,-2000.0,0.00028169,2]
[422258472,1778772647000,-2000.0,0.00028169,2]
[422258473,1778772647000,-2000.0,0.00028169,2]
[422258474,1778772647000,-2000.0,0.00028169,2]
[422258475,1778772647000,-2000.0,0.00028169,2]
[422258476,1778772647000,-2000.0,0.00028169,2]
[422258479,1778772647000,-150.0,0.00028192,2]
[422258478,1778772647000,-2000.0,0.00028169,2]
[422258481,1778772647000,-1005.68469482,0.00028311,30]
[422258482,1778772647000,-573.0,0.00028329,6]
[422258484,1778772647000,-500.0,0.00028342,2]
[422258486,1778772647000,-500.0,0.00028342,2]
[422258485,1778772647000,-500.0,0.00028342,2]
[422258483,1778772647000,-500.0,0.00028342,2]
[422258488,1778772647000,-500.0,0.00028342,2]
[422258487,1778772647000,-500.0,0.00028342,2]
[422258490,1778772647000,-500.0,0.00028342,2]
[422258501,1778772647000,-2000.0,0.00028483,2]
[422258491,1778772647000,-500.0,0.00028342,2]
[422258493,1778772647000,-318.52,0.00028385,7]
[422258537,1778772647000,-1070.0,0.00028494,2]
[422258593,1778772647000,-500.0,0.00028509,2]
[422258552,1778772647000,-1070.0,0.00028494,2]
[422258586,1778772647000,-530.77702258,0.00028494,2]
[422258585,1778772647000,-500.0,0.00028494,2]
[422258588,1778772647000,-150.0,0.00028494,2]
[422258587,1778772647000,-500.0,0.00028494,2]
[422258591,1778772647000,-500.0,0.00028509,2]
[422258589,1778772647000,-500.0,0.00028509,2]
[422258592,1778772647000,-500.0,0.00028509,2]
[422258596,1778772647000,-500.0,0.00028509,2]
[422258590,1778772647000,-500.0,0.00028509,2]
[422258597,1778772647000,-500.0,0.00028509,2]
[422258594,1778772647000,-500.0,0.00028509,2]
[422258598,1778772647000,-500.0,0.00028509,2]
[422258600,1778772647000,-500.0,0.00028509,2]
[422258601,1778772647000,-500.0,0.00028509,2]
[422258602,1778772647000,-500.0,0.00028509,2]
[422258603,1778772647000,-500.0,0.00028509,2]
[422258604,1778772647000,-500.0,0.00028509,2]
[422258599,1778772647000,-500.0,0.00028509,2]
[422258605,1778772647000,-500.0,0.00028509,2]
[422258610,1778772647000,-500.0,0.0002858,20]
[422258608,1778772647000,-500.0,0.00028509,2]
[422258607,1778772647000,-500.0,0.00028509,2]
[422258609,1778772647000,-264.89014969,0.00028509,2]
[422258606,1778772647000,-500.0,0.00028509,2]
[422258550,1778772647000,-1070.0,0.00028494,2]
[422258583,1778772647000,-500.0,0.00028494,2]
[422258581,1778772647000,-500.0,0.00028494,2]
[422258595,1778772647000,-500.0,0.00028509,2]
[422258580,1778772647000,-500.0,0.00028494,2]
[422258539,1778772647000,-1070.0,0.00028494,2]
[422258584,1778772647000,-500.0,0.00028494,2]
[422258556,1778772647000,-1070.0,0.00028494,2]
[422258559,1778772647000,-1070.0,0.00028494,2]
[422258558,1778772647000,-1070.0,0.00028494,2]
[422258562,1778772647000,-1070.0,0.00028494,2]
[422258560,1778772647000,-1070.0,0.00028494,2]
[422258563,1778772647000,-1070.0,0.00028494,2]
[422258561,1778772647000,-1070.0,0.00028494,2]
[422258574,1778772647000,-500.0,0.00028494,2]
[422258575,1778772647000,-500.0,0.00028494,2]
[422258565,1778772647000,-1070.0,0.00028494,2]
[422258566,1778772647000,-1070.0,0.00028494,2]
[422258564,1778772647000,-1070.0,0.00028494,2]
[422258554,1778772647000,-1070.0,0.00028494,2]
[422258582,1778772647000,-500.0,0.00028494,2]
[422258579,1778772647000,-500.0,0.00028494,2]
[422258578,1778772647000,-500.0,0.00028494,2]
[422258577,1778772647000,-500.0,0.00028494,2]
[422258570,1778772647000,-200.0,0.00028494,2]
[422258572,1778772647000,-500.0,0.00028494,2]
[422258576,1778772647000,-503.52293091,0.00028494,2]
[422258573,1778772647000,-500.0,0.00028494,2]
[422258571,1778772647000,-500.0,0.00028494,2]
[422258568,1778772647000,-150.0,0.00028494,2]
[422258567,1778772647000,-1093.0,0.00028494,2]
[422258569,1778772647000,-150.0,0.00028494,2]
[422258638,1778772648000,-330.0,0.00029452,13]
[422258651,1778772648000,-166.0,0.0002959,3]
[422258650,1778772648000,-166.0,0.0002959,3]
[422258648,1778772648000,-166.0,0.0002959,3]
[422258641,1778772648000,-1001.9,0.000295,2]
[422258644,1778772648000,-150.0,0.00029589,2]
[422258642,1778772648000,-200.0,0.000295,10]
[422258643,1778772648000,-200.0,0.00029516,2]
[422258639,1778772648000,-1001.9,0.00029471,2]
[422258637,1778772648000,-573.0,0.00029452,7]
[422258649,1778772648000,-166.0,0.0002959,3]
[422258640,1778772648000,-44448.44288901,0.000295,7]
[422258656,1778772648000,-300.0,0.0002959,3]
[422258657,1778772648000,-396.0,0.00029596,2]
[422258652,1778772648000,-166.0,0.0002959,3]
[422258653,1778772648000,-166.0,0.0002959,3]
[422258658,1778772648000,-1619.18,0.000296,7]
[422258654,1778772648000,-172.0,0.0002959,3]
[422258659,1778772648000,-214.518505,0.000296,10]
[422258670,1778772648000,-500.0,0.00029864,2]
[422258660,1778772648000,-1500.0,0.000296,2]
[422258664,1778772648000,-200.0,0.00029811,2]
[422258663,1778772648000,-243.84,0.00029795,14]
[422258661,1778772648000,-150.0,0.00029601,2]
[422258662,1778772648000,-396.0,0.00029626,2]
[422258665,1778772648000,-150.0,0.00029819,2]
[422258655,1778772648000,-301.11515345,0.0002959,3]
[422258646,1778772648000,-166.0,0.0002959,3]
[422258620,1778772648000,-1000.0,0.00029024,7]
[422258635,1778772648000,-4567.0,0.00029445,2]
[422258668,1778772648000,-402.0,0.00029861,2]
[422258621,1778772648000,-1351.38343128,0.00029112,2]
[422258613,1778772648000,-573.0,0.0002889,6]
[422258619,1778772648000,-163.0,0.00029,120]
[422258611,1778772648000,-157.0,0.00028748,3]
[422258614,1778772648000,-842.19,0.000289,7]
[422258618,1778772648000,-500.0,0.0002898,5]
[422258616,1778772648000,-1000.0,0.00028956,7]
[422258617,1778772648000,-1000.0,0.00028969,7]
[422258612,1778772648000,-500.0,0.0002878,20]
[422258615,1778772648000,-2829.47,0.000289,14]
[422258622,1778772648000,-1343.19200131,0.00029224,2]
[422258647,1778772648000,-166.0,0.0002959,3]
[422258624,1778772648000,-1005.68469482,0.00029224,30]
[422258634,1778772648000,-274.0,0.00029445,2]
[422258623,1778772648000,-200.0,0.00029224,2]
[422258633,1778772648000,-1001.9,0.00029443,2]
[422258626,1778772648000,-1001.9,0.000293,2]
[422258630,1778772648000,-1001.9,0.00029357,2]
[422258627,1778772648000,-1210.47,0.000293,7]
[422258629,1778772648000,-1001.9,0.00029329,2]
[422258632,1778772648000,-1001.9,0.00029414,2]
[422258628,1778772648000,-1000.0,0.00029307,7]
[422258631,1778772648000,-1001.9,0.00029386,2]
[422258636,1778772648000,-1000.0,0.0002945,7]
[422258645,1778772648000,-274.91781232,0.00029589,2]
[422258625,1778772648000,-1000.0,0.00029252,7]
[422258666,1778772648000,-393.0,0.00029848,2]
[422258673,1778772648000,-402.0,0.00029869,2]
[422258669,1778772648000,-396.0,0.00029863,2]
[422258709,1778772648000,-402.0,0.00029955,2]
[422258708,1778772648000,-402.0,0.00029953,2]
[422258700,1778772648000,-402.0,0.00029933,2]
[422258707,1778772648000,-402.0,0.00029948,2]
[422258704,1778772648000,-402.0,0.00029946,2]
[422258705,1778772648000,-402.0,0.00029947,2]
[422258703,1778772648000,-402.0,0.00029946,2]
[422258706,1778772648000,-402.0,0.00029947,2]
[422258702,1778772648000,-402.0,0.00029943,2]
[422258711,1778772648000,-402.0,0.00029958,2]
[422258721,1778772648000,-402.0,0.00029979,2]
[422258710,1778772648000,-402.0,0.00029955,2]
[422258701,1778772648000,-402.0,0.00029933,2]
[422258715,1778772648000,-402.0,0.00029974,2]
[422258718,1778772648000,-402.0,0.00029976,2]
[422258720,1778772648000,-402.0,0.00029978,2]
[422258712,1778772648000,-402.0,0.00029964,2]
[422258713,1778772648000,-402.0,0.00029965,2]
[422258714,1778772648000,-402.0,0.00029972,2]
[422258716,1778772648000,-402.0,0.00029975,2]
[422258719,1778772648000,-402.0,0.00029976,2]
[422258725,1778772648000,-402.0,0.0002999,2]
[422258726,1778772648000,-402.0,0.0002999,2]
[422258722,1778772648000,-402.0,0.00029984,2]
[422258724,1778772648000,-402.0,0.00029989,2]
[422258667,1778772648000,-402.0,0.0002986,2]
[422258717,1778772648000,-402.0,0.00029975,2]
[422258699,1778772648000,-402.0,0.00029926,2]
[422258723,1778772648000,-402.0,0.00029989,2]
[422258697,1778772648000,-402.0,0.00029922,2]
[422258698,1778772648000,-402.0,0.00029924,2]
[422258671,1778772648000,-402.0,0.00029865,2]
[422258672,1778772648000,-402.0,0.00029867,2]
[422258682,1778772648000,-402.0,0.00029893,2]
[422258683,1778772648000,-402.0,0.00029896,2]
[422258680,1778772648000,-402.0,0.00029883,2]
[422258727,1778772648000,-240.75254646,0.0002999,2]
[422258674,1778772648000,-402.0,0.00029872,2]
[422258675,1778772648000,-402.0,0.00029879,2]
[422258679,1778772648000,-402.0,0.00029881,2]
[422258676,1778772648000,-226.0,0.00029879,2]
[422258677,1778772648000,-402.0,0.0002988,2]
[422258678,1778772648000,-402.0,0.00029881,2]
[422258681,1778772648000,-402.0,0.00029892,2]
[422258695,1778772648000,-530.62970485,0.00029916,2]
[422258694,1778772648000,-402.0,0.00029915,2]
[422258685,1778772648000,-402.0,0.00029898,2]
[422258686,1778772648000,-4799.37329779,0.000299,2]
[422258690,1778772648000,-402.0,0.00029907,2]
[422258692,1778772648000,-402.0,0.00029911,2]
[422258693,1778772648000,-396.0,0.00029911,2]
[422258689,1778772648000,-402.0,0.00029904,2]
[422258691,1778772648000,-402.0,0.00029909,2]
[422258688,1778772648000,-2829.47,0.000299,14]
[422258687,1778772648000,-842.19,0.000299,7]
[422258696,1778772648000,-402.0,0.0002992,2]
[422258684,1778772648000,-402.0,0.00029898,2]
[422258775,1778772649000,-402.0,0.00030005,2]
[422258758,1778772649000,-151.0,0.0003,30]
[422258762,1778772649000,-151.0,0.0003,30]
[422258757,1778772649000,-151.0,0.0003,30]
[422258759,1778772649000,-151.0,0.0003,30]
[422258760,1778772649000,-151.0,0.0003,30]
[422258765,1778772649000,-151.0,0.0003,30]
[422258755,1778772649000,-151.0,0.0003,30]
[422258753,1778772649000,-151.0,0.0003,30]
[422258764,1778772649000,-151.0,0.0003,30]
[422258756,1778772649000,-151.0,0.0003,30]
[422258761,1778772649000,-151.0,0.0003,30]
[422258767,1778772649000,-172.0,0.0003,14]
[422258766,1778772649000,-151.0,0.0003,30]
[422258768,1778772649000,-150.0,0.0003,14]
[422258769,1778772649000,-200.0,0.0003,2]
[422258774,1778772649000,-402.0,0.00030003,2]
[422258770,1778772649000,-214.95940296,0.0003,10]
[422258771,1778772649000,-208.3309892,0.0003,10]
[422258772,1778772649000,-402.0,0.00030003,2]
[422258754,1778772649000,-151.0,0.0003,30]
[422258763,1778772649000,-151.0,0.0003,30]
[422258751,1778772649000,-44748.11385867,0.0003,2]
[422258739,1778772649000,-311.26101948,0.0003,2]
[422258750,1778772649000,-650.0,0.0003,2]
[422258773,1778772649000,-402.0,0.00030003,2]
[422258728,1778772649000,-402.0,0.00029995,2]
[422258736,1778772649000,-1845.21977072,0.0003,2]
[422258740,1778772649000,-165.48517158,0.0003,2]
[422258730,1778772649000,-108782.6053155,0.0003,5]
[422258738,1778772649000,-212.93510395,0.0003,120]
[422258729,1778772649000,-402.0,0.00029999,2]
[422258733,1778772649000,-20170.11975411,0.0003,2]
[422258734,1778772649000,-87877.0,0.0003,2]
[422258732,1778772649000,-252.66873104,0.0003,120]
[422258735,1778772649000,-324.24521552,0.0003,2]
[422258731,1778772649000,-10000.0,0.0003,10]
[422258747,1778772649000,-183.93841349,0.0003,2]
[422258746,1778772649000,-500.0,0.0003,2]
[422258742,1778772649000,-1093.67773604,0.0003,2]
[422258748,1778772649000,-10119.45472075,0.0003,2]
[422258743,1778772649000,-14997.0,0.0003,2]
[422258749,1778772649000,-14671.4671385,0.0003,2]
[422258745,1778772649000,-2100.28883973,0.0003,2]
[422258752,1778772649000,-151.0,0.0003,30]
[422258741,1778772649000,-160.0,0.0003,120]
[422258744,1778772649000,-151.0,0.0003,2]
[422258777,1778772649000,-402.0,0.0003001,2]
[422258737,1778772649000,-500.0,0.0003,2]
[422258779,1778772649000,-573.0,0.00030014,7]
[422258808,1778772649000,-200.0,0.0003011,2]
[422258803,1778772649000,-1223.0,0.0003009,2]
[422258802,1778772649000,-1270.0,0.0003009,2]
[422258800,1778772649000,-402.0,0.00030087,2]
[422258804,1778772649000,-6052.0,0.0003009,2]
[422258821,1778772649000,-39723.5,0.0003013,7]
[422258820,1778772649000,-591302.14772072,0.0003013,7]
[422258812,1778772649000,-402.0,0.00030119,2]
[422258811,1778772649000,-402.0,0.00030116,2]
[422258810,1778772649000,-402.0,0.00030114,2]
[422258806,1778772649000,-402.0,0.00030095,2]
[422258815,1778772649000,-402.0,0.00030125,2]
[422258814,1778772649000,-402.0,0.00030124,2]
[422258817,1778772649000,-1090.01257389,0.0003013,2]
[422258813,1778772649000,-402.0,0.00030123,2]
[422258819,1778772649000,-204.78623452,0.0003013,2]
[422258818,1778772649000,-14062.18211803,0.0003013,2]
[422258822,1778772649000,-1609.946875,0.0003013,7]
[422258823,1778772649000,-1609.946875,0.0003013,7]
[422258824,1778772649000,-1609.946875,0.0003013,7]
[422258826,1778772649000,-151.0,0.0003013,2]
[422258776,1778772649000,-157.73608219,0.00030009,48]
[422258816,1778772649000,-402.0,0.0003013,2]
[422258801,1778772649000,-159.40043993,0.00030088,74]
[422258825,1778772649000,-1609.946875,0.0003013,7]
[422258799,1778772649000,-402.0,0.00030079,2]
[422258809,1778772649000,-402.0,0.00030112,2]
[422258786,1778772649000,-402.0,0.00030048,2]
[422258778,1778772649000,-402.0,0.00030013,2]
[422258784,1778772649000,-402.0,0.00030038,2]
[422258783,1778772649000,-402.0,0.00030033,2]
[422258781,1778772649000,-393.0,0.00030026,2]
[422258785,1778772649000,-402.0,0.00030042,2]
[422258782,1778772649000,-402.0,0.00030029,2]
[422258787,1778772649000,-402.0,0.00030052,2]
[422258789,1778772649000,-402.0,0.00030058,2]
[422258791,1778772649000,-402.0,0.0003006,2]
[422258780,1778772649000,-402.0,0.00030024,2]
[422258792,1778772649000,-402.0,0.00030062,2]
[422258788,1778772649000,-402.0,0.00030058,2]
[422258805,1778772649000,-3630.0,0.0003009,2]
[422258798,1778772649000,-402.0,0.00030074,2]
[422258796,1778772649000,-402.0,0.00030072,2]
[422258797,1778772649000,-402.0,0.00030074,2]
[422258794,1778772649000,-194.9476108,0.00030069,2]
[422258793,1778772649000,-426.0,0.00030064,2]
[422258790,1778772649000,-402.0,0.0003006,2]
[422258795,1778772649000,-14514.99138467,0.00030069,2]
[422258807,1778772649000,-1500.0,0.000301,2]
[422258849,1778772650000,-591.875821,0.0003013,7]
[422258855,1778772650000,-413.199868,0.0003013,7]
[422258851,1778772650000,-591.875821,0.0003013,7]
[422258850,1778772650000,-591.875821,0.0003013,7]
[422258854,1778772650000,-413.199868,0.0003013,7]
[422258858,1778772650000,-425.186581,0.0003013,7]
[422258853,1778772650000,-413.199868,0.0003013,7]
[422258857,1778772650000,-425.186581,0.0003013,7]
[422258870,1778772650000,-1565.602577,0.0003013,7]
[422258859,1778772650000,-425.186581,0.0003013,7]
[422258861,1778772650000,-151.0,0.0003013,7]
[422258869,1778772650000,-1565.602577,0.0003013,7]
[422258863,1778772650000,-920.886244,0.0003013,7]
[422258862,1778772650000,-151.0,0.0003013,7]
[422258860,1778772650000,-425.186581,0.0003013,7]
[422258866,1778772650000,-920.886244,0.0003013,7]
[422258864,1778772650000,-920.886244,0.0003013,7]
[422258846,1778772650000,-151.0,0.0003013,7]
[422258856,1778772650000,-413.199868,0.0003013,7]
[422258852,1778772650000,-591.875821,0.0003013,7]
[422258837,1778772650000,-402.640916,0.0003013,7]
[422258847,1778772650000,-151.0,0.0003013,7]
[422258867,1778772650000,-1565.602577,0.0003013,7]
[422258827,1778772650000,-247.56391,0.0003013,2]
[422258829,1778772650000,-151.0,0.0003013,7]
[422258830,1778772650000,-151.0,0.0003013,7]
[422258832,1778772650000,-151.0,0.0003013,7]
[422258831,1778772650000,-151.0,0.0003013,7]
[422258828,1778772650000,-151.0,0.0003013,7]
[422258834,1778772650000,-151.0,0.0003013,7]
[422258833,1778772650000,-151.0,0.0003013,7]
[422258838,1778772650000,-151.0,0.0003013,7]
[422258835,1778772650000,-402.640916,0.0003013,7]
[422258836,1778772650000,-151.0,0.0003013,7]
[422258840,1778772650000,-402.640916,0.0003013,7]
[422258844,1778772650000,-151.0,0.0003013,7]
[422258839,1778772650000,-402.640916,0.0003013,7]
[422258843,1778772650000,-151.0,0.0003013,7]
[422258841,1778772650000,-151.0,0.0003013,7]
[422258845,1778772650000,-151.0,0.0003013,7]
[422258842,1778772650000,-151.0,0.0003013,7]
[422258848,1778772650000,-151.0,0.0003013,7]
[422258868,1778772650000,-1565.602577,0.0003013,7]
[422258865,1778772650000,-920.886244,0.0003013,7]
[422258874,1778772650000,-1062.333433,0.0003013,7]
[422258895,1778772650000,-503.537667,0.0003013,7]
[422258905,1778772650000,-402.0,0.00030133,2]
[422258906,1778772650000,-151.0,0.00030134,7]
[422258897,1778772650000,-503.537667,0.0003013,7]
[422258907,1778772650000,-285.485,0.00030137,120]
[422258898,1778772650000,-787.643953,0.0003013,7]
[422258899,1778772650000,-787.643953,0.0003013,7]
[422258902,1778772650000,-151.0,0.0003013,7]
[422258900,1778772650000,-787.643953,0.0003013,7]
[422258901,1778772650000,-151.0,0.0003013,7]
[422258909,1778772650000,-250.0,0.00030137,120]
[422258908,1778772650000,-1065.33,0.00030137,2]
[422258912,1778772650000,-15775.86246227,0.000302,2]
[422258915,1778772650000,-4715.29,0.000304,2]
[422258910,1778772650000,-5064.23999999,0.00030137,30]
[422258911,1778772650000,-1439.49482848,0.00030137,2]
[422258914,1778772650000,-152.0,0.00030321,7]
[422258913,1778772650000,-2236.0,0.00030239,2]
[422258871,1778772650000,-1062.333433,0.0003013,7]
[422258904,1778772650000,-151.0,0.0003013,7]
[422258896,1778772650000,-787.643953,0.0003013,7]
[422258903,1778772650000,-151.0,0.0003013,7]
[422258892,1778772650000,-6069.126935,0.0003013,7]
[422258876,1778772650000,-161.502865,0.0003013,7]
[422258891,1778772650000,-6069.126935,0.0003013,7]
[422258873,1778772650000,-1062.333433,0.0003013,7]
[422258877,1778772650000,-892.364592,0.0003013,7]
[422258878,1778772650000,-892.364592,0.0003013,7]
[422258872,1778772650000,-1062.333433,0.0003013,7]
[422258880,1778772650000,-321.442549,0.0003013,7]
[422258879,1778772650000,-892.364592,0.0003013,7]
[422258875,1778772650000,-151.0,0.0003013,7]
[422258882,1778772650000,-321.442549,0.0003013,7]
[422258881,1778772650000,-892.364592,0.0003013,7]
[422258884,1778772650000,-321.442549,0.0003013,7]
[422258883,1778772650000,-321.442549,0.0003013,7]
[422258885,1778772650000,-882.070116,0.0003013,7]
[422258887,1778772650000,-882.070116,0.0003013,7]
[422258886,1778772650000,-882.070116,0.0003013,7]
[422258888,1778772650000,-882.070116,0.0003013,7]
[422258889,1778772650000,-6069.126935,0.0003013,7]
[422258894,1778772650000,-503.537667,0.0003013,7]
[422258893,1778772650000,-503.537667,0.0003013,7]
[422258890,1778772650000,-6069.126935,0.0003013,7]
[422258948,1778772651000,-1633.762728,0.0003084,2]
[422258953,1778772651000,-214.95940296,0.00031,10]
[422258970,1778772651000,-152.0,0.00031268,8]
[422258951,1778772651000,-11418.38812416,0.00031,2]
[422258950,1778772651000,-157.0,0.0003093,3]
[422258955,1778772651000,-214.95940296,0.00031,3]
[422258947,1778772651000,-1374.16909061,0.000308,2]
[422258949,1778772651000,-1000.0,0.00030905,7]
[422258956,1778772651000,-208.3309892,0.00031,3]
[422258954,1778772651000,-208.3309892,0.00031,10]
[422258946,1778772651000,-1374.16909061,0.000308,2]
[422258958,1778772651000,-6292.8,0.0003105,30]
[422258967,1778772651000,-1000.0,0.00031156,2]
[422258963,1778772651000,-1847.41533141,0.0003114,2]
[422258960,1778772651000,-573.0,0.00031137,9]
[422258964,1778772651000,-1000.0,0.00031156,2]
[422258959,1778772651000,-150.0,0.00031081,2]
[422258961,1778772651000,-1000.0,0.0003114,2]
[422258962,1778772651000,-1000.0,0.0003114,2]
[422258965,1778772651000,-1000.0,0.00031156,2]
[422258966,1778772651000,-1000.0,0.00031156,2]
[422258978,1778772651000,-1619.18,0.000315,7]
[422258968,1778772651000,-1000.0,0.00031156,2]
[422258945,1778772651000,-1374.16909064,0.000308,2]
[422258957,1778772651000,-700.0,0.00031034,7]
[422258944,1778772651000,-1210.47,0.000308,7]
[422258920,1778772651000,-25000.0,0.00030431,10]
[422258941,1778772651000,-4116.15751732,0.000307,2]